Cogmind - Beta 16.1 @@@ ROGUE MODE // 2026.03.27 @ 22:51:16 Player: Ez Result: Destroyed by G-34 Mercenary with Small Laser Performance ------------- Evolutions (0) 0 Regions Visited (1) 200 Robots Destroyed (13) 65 Value Destroyed (278) 278 Prototype IDs (0) 0 Alien Tech Used (0) 0 Bonus (0) 0 TOTAL SCORE: 543 Bonus ------- None Cogmind --------- Core Integrity 0/250 Matter 226/300 Energy 100/100 System Corruption 0% Temperature Cool (6) Movement Walking (400) Ox4 Location -10/Materials Parts ------- > --- POWER (1) -------- (None) > --- PROPULSION (2) --- Aluminum Leg > --- UTILITY (2) ------ High-capacity Storage Unit > --- WEAPON (2) ------- Light Assault Rifle > --- INVENTORY (20) --- Light Ion Engine Light Nuclear Core Light Treads Light Treads Grenade Launcher Mining Claw Peak State ------------ > --- POWER ------------ Light Ion Engine > --- PROPULSION ------- Aluminum Leg Aluminum Leg > --- UTILITY ---------- Small Storage Unit Light Armor Plating > --- WEAPON ----------- Assault Rifle Light Assault Rifle > --- INVENTORY -------- Light Treads Light Treads Grenade Launcher [Rating: 7] Favorites ----------- Power Light Ion Engine Engine Light Ion Engine Propulsion Aluminum Leg Leg Aluminum Leg Utility Light Armor Plating Storage Small Storage Unit Protection Light Armor Plating Weapon Assault Rifle Ballistic Gun Assault Rifle Build | -11 -10 ------- Run | Yrd Mat Slots Evolved . | . . Power . | . . Propulsion . | . . Utility . | . . Weapon . | . . Parts Attached 13 | 5 8 Power 3 | 1 2 Engine 3 | 1 2 Core . | . . Reactor . | . . Propulsion 4 | 2 2 Treads . | . . Leg 4 | 2 2 Wheel . | . . Hover . | . . Flight . | . . Utility 3 | 1 2 Device . | . . Storage 2 | 1 1 Processor . | . . Hackware . | . . Protection 1 | . 1 Artifact . | . . Weapon 3 | 1 2 Energy Gun . | . . Energy Cannon . | . . Ballistic Gun 3 | 1 2 Ballistic Cannon . | . . Launcher . | . . Special Weapon . | . . Impact Weapon . | . . Slashing Weapon . | . . Piercing Weapon . | . . Special Melee Weapon . | . . Unidentified Prototypes . | . . Parts Lost 8 | . 8 Power 2 | . 2 Propulsion 3 | . 3 Utility 1 | . 1 Weapon 2 | . 2 Highest Loss Streak 6 | . 6 To Critical Strikes . | . . Average Backups 3 | 1 3 Power . | . . Propulsion 2 | 1 2 Utility . | . . Weapon 1 | . 1 Tool/Special . | . . Unused Backups 4 | . 4 Power . | . . Propulsion 2 | . 2 Utility . | . . Weapon 2 | . 2 Tool/Special . | . . Average Slot Usage (%) 81 | . 81 Engine 13 | . 13 Leg 22 | . 22 Storage 14 | . 14 Protection 9 | . 9 Ballistic Gun 21 | . 21 Peak Build Rating 7 | 5 7 Average Rating 5 | 3 5 On Entrance 2 | . 5 Avg Prop Armor Cover (%) . | . . Naked Turns . | . . Heaviest Build 51 | 10 51 Greatest Support 20 | 20 20 Greatest Overweight (x) 5 | . 5 Average Overweight (x) . | . . Largest Inventory Capacity 20 | 8 20 Average Capacity 11 | 6 12 Most Carried 6 | 2 6 Average Carried 3 | 1 4 Final Capacity 20 | 8 20 Final Carried 6 | 2 6 Class Distribution -------------------- 96% | Mutant 3% | Scavenger-Mutant Dominant Class ---------------- Mutant | -10/Materials Resources | -11 -10 ----------- Run | Yrd Mat Matter Collected 413 | 189 224 Remotely . | . . Salvage Created 387 | . 387 Parts 29 | . 29 Haulers Intercepted . | . . Recyclers Shooed . | . . Parts Field Recycled . | . . Retrieved Matter . | . . Parts Self-Destructed . | . . Prevented . | . . Parts Restored . | . . Kills | -11 -10 ------- Run | Yrd Mat Combat Hostiles Destroyed 11 | . 11 Guns 11 | . 11 Classes Destroyed 4 | . 4 Recycler 1 | . 1 Operator 1 | . 1 Swarmer 6 | . 6 Grunt 5 | . 5 Best Kill Streak 3 | . 3 Combat Bots Only 3 | . 3 Max Kills in Single Turn 1 | . 1 Gunslinging . | . . Exploded . | . . Melee . | . . Uniques/NPCs Destroyed . | . . Combat | -11 -10 -------- Run | Yrd Mat Hostile Shots Fired 159 | . 159 Missed 40 | . 40 Hits 119 | . 119 Projectile 119 | . 119 Critical Strikes 2 | . 2 Damage Taken 1105 | . 1105 Core 261 | . 261 Absorbed by Shields . | . . Regen/Repaired (Parts) 169 | . 169 Core Remaining (%) 100 | 100 . Volleys Fired 45 | . 45 Largest 2 | . 2 Hottest 40 | . 40 Shots Fired 55 | . 55 Gun 55 | . 55 Cannon . | . . Launcher . | . . Special . | . . Kinetic 55 | . 55 Thermal . | . . Explosive . | . . Electromagnetic . | . . Robot Hit Streak 8 | . 8 Robot Miss Streak 3 | . 3 Penetration Max . | . . Secondary Targets 1 | . 1 Max Gunslinging Chain 1 | . 1 Shots Hit Robots 38 | . 38 Core Hits 19 | . 19 Critical Kills 1 | . 1 Critical Parts Destroyed . | . . Critical Strikes 1 | . 1 Destroy 1 | . 1 Melee Attacks . | . . Impact . | . . Slashing . | . . Piercing . | . . Sneak Attacks . | . . Combat Hostiles . | . . Follow-up Attacks . | . . Damage Inflicted 424 | . 424 Guns 424 | . 424 Cannons . | . . Explosions . | . . Melee . | . . Ramming . | . . Kinetic 424 | . 424 Thermal . | . . Explosive . | . . Electromagnetic . | . . Impact . | . . Slashing . | . . Piercing . | . . Highest Corruption . | . . Average Corruption . | . . Corruption Purged . | . . Corruption Blocked . | . . Overload Shots . | . . Overflow Damage . | . . Projectiles . | . . Explosions . | . . Melee . | . . Knockbacks . | . . Impact . | . . Kinetic . | . . Secondary . | . . Self-Inflicted Damage . | . . Shots . | . . Rammed . | . . Targets Rammed . | . . Kicked . | . . Crushed . | . . Highest Temperature 27 | . 27 Average Temperature 8 | . 8 Received Heat Transfer 246 | . 246 Siege Activations . | . . Martial Activations . | . . Shielding Activations . | . . Robots Disrupted . | . . Combat Hostiles . | . . Robots Corrupted . | . . Combat Hostiles . | . . Parts Fried . | . . Impact Corruptions . | . . Robots Melted . | . . Combat Hostiles . | . . Parts Melted . | . . Heat Transferred . | . . Parts Sabotaged . | . . Parts Stolen . | . . Parts Stripped . | . . Power Chain Reactions . | . . Alert | -11 -10 ------- Run | Yrd Mat Maximum Alert Level . | . . Low Security (%) 100 | 100 100 Level 1 . | . . Level 2 . | . . Level 3 . | . . Level 4 . | . . Level 5 . | . . High Security . | . . Max Security . | . . Peak Influence 70 | . 70 Initial . | . . Average 13 | . 14 Influence Increases 321 | . 321 Destroy 0b10 Robot/C 220 | . 220 Destroy 0b10 Robot/NC 10 | . 10 Destroy Leader 50 | . 50 Successful Hack 26 | . 26 Lose Combat Pursuer 15 | . 15 Influence Decreases 275 | . 275 Time Decay 215 | . 215 Lost Part 60 | . 60 Squads Dispatched 1 | . 1 Investigation . | . . Extermination . | . . Reinforcement 1 | . 1 Assault . | . . Garrison . | . . Intercept . | . . Searches Triggered . | . . Construction Impeded . | . . Haulers Reinforced . | . . Active Scanning Responses . | . . Cargo Convoy Interrupts . | . . Stealth | -11 -10 --------- Run | Yrd Mat Distress Signals 2 | . 2 Communications Jammed . | . . Distress Signals . | . . Times Spotted 21 | . 21 Peak Tracking Total 6 | . 6 Tactical Retreats 1 | . 1 Traps | -11 -10 ------- Run | Yrd Mat Traps Triggered 2 | . 2 Indirectly . | . . Trap Hack Attempts . | . . Triggered . | . . Disarmed . | . . Reprogrammed . | . . Reused . | . . Traps Extracted . | . . Installed . | . . Triggered . | . . Machines | -11 -10 ---------- Run | Yrd Mat Machines Disabled . | . . Max in Single Turn . | . . Machines Repaired . | . . Machines Dismantled . | . . Machines Sabotaged . | . . Overloaded Fab Kills . | . . Hacking | -11 -10 --------- Run | Yrd Mat Machines Accessed 5 | . 5 Terminals 4 | . 4 Fabricators . | . . Repair Stations 1 | . 1 Recycling Units . | . . Scanalyzers . | . . Garrison Access . | . . Total Hacks 16 | . 16 Successful 12 | . 12 Failed 4 | . 4 Catastrophic . | . . Database Lockouts . | . . Manual 12 | . 12 Terminals 12 | . 12 Fabricators . | . . Repair Stations 4 | . 4 Recycling Units . | . . Scanalyzers . | . . Garrison Access . | . . Terminal Hacks 1 | . 1 Terminal Index 1 | . 1 Fabricator Hacks . | . . Repair Station Hacks 4 | . 4 Scan Component 2 | . 2 Repair 2 | . 2 Recycling Unit Hacks . | . . Scanalyzer . | . . Garrison Access Hacks . | . . Unauthorized Hacks 7 | . 7 Terminals 7 | . 7 Track 1 | . 1 Assimilate 4 | . 4 Botnet 1 | . 1 Operators 1 | . 1 Fabricators . | . . Repair Stations . | . . Recycling Units . | . . Scanalyzers . | . . Garrison Access . | . . Data Cores Recovered . | . . Used . | . . Hacking Detections 5 | . 5 Full Trace Events . | . . Feedback Events . | . . Feedback Blocked . | . . Robot Schematics Acquired . | . . Robots Built . | . . Authchips . | . . Time . | . . Total Robot Build Rating . | . . Part Schematics Acquired . | . . Parts Built . | . . Authchips . | . . Time . | . . Total Part Build Rating . | . . Part Studies Acquired . | . . Parts Repaired 2 | . 2 Time 52 | . 52 Parts Recycled . | . . Recycled Matter . | . . Retrieved Matter . | . . Retrieved Components . | . . Parts Scanalyzed . | . . Part Schematics Acquired . | . . Parts Damaged . | . . Bothacking | -11 -10 ------------ Run | Yrd Mat Used RIF Installer . | . . Robots Hacked . | . . Non-combat . | . . Combat . | . . Robot Hacks Applied . | . . Relay Couplers Released . | . . Fabnet Peak Effective % . | . . Robots Rewired . | . . Allies Hacked . | . . Hacks Repelled . | . . Allies | -11 -10 -------- Run | Yrd Mat Total Allies 1 | . 1 Largest Group 1 | . 1 Highest-Rated Group 10 | . 10 Highest-Rated Ally 10 | . 10 Total Orders . | . . Ally Attacks . | . . Total Damage . | . . Kills . | . . Allies Corrupted . | . . Allies Melted . | . . Intel | -11 -10 ------- Run | Yrd Mat Active Infowar (turns) . | . . Robot Analysis Total . | . . Derelict Logs Recovered . | . . Drone Launches . | . . Drone Recoveries . | . . Exploration | -11 -10 ------------- Run | Yrd Mat Turns Passed 977 | 57 920 Spaces Moved 474 | 47 427 Core 20 | 12 8 Treads . | . . Legs 454 | 35 419 Wheels . | . . Hover . | . . Flight . | . . Fastest Speed 50 | 50 120 Average Speed 165 | 102 172 Slowest Speed 470 | 120 470 Overloaded Moves . | . . Propulsion Burnouts . | . . Robots Hopped . | . . Potential Cave-ins . | . . Cave-ins Triggered . | . . Exploration Rate (%) 34 | 3 65 Regions Visited 1 Branch Regions . Pre-discovered Areas . | . . Known Exits Taken . | . . Unknown Exits Taken 1 | 1 . Scrap Searched . | . . Spaces Dug . | . . Terrain Destroyed . | . . Melee . | . . Projectile . | . . AOE . | . . Terrain Rammed . | . . Walls Destroyed . | . . Machines Disabled . | . . Actions | -11 -10 --------- Run | Yrd Mat Total 608 | 53 555 Wait 59 | . 59 Move 473 | 46 427 Hop . | . . Pick Up 9 | 2 7 Fast Attach 15 | 5 10 Attach 4 | . 4 Detach . | . . Swap 2 | . 2 Drop 1 | . 1 Fire 45 | . 45 Melee . | . . Ram . | . . Kick . | . . Crush . | . . Escape Stasis . | . . Rewire . | . . Trap . | . . Miscellaneous . | . . Route ------- -11/Scrapyard -10/Materials (discovered 4 exits: [*Mat] / [*Min x2] / [*Sub]) History --------- Turn | Location | Event 4 | -11/Scrapyard | Discovered new exit (range 15) 58 | -11/Scrapyard | Entered Materials 226 | -10/Materials | Discovered new exit (range 12) 301 | -10/Materials | Build established: Mutant 304 | -10/Materials | Discovered new exit (range 16) 518 | -10/Materials | Discovered new exit (range 6) 573 | -10/Materials | Repaired Lgt. Armor Plating 600 | -10/Materials | Repaired Assault Rifle 704 | -10/Materials | Discovered new exit (range 8) 941 | -10/Materials | Core integrity fell below 50% 965 | -10/Materials | Core integrity fell below 20% 978 | -10/Materials | Destroyed by G-34 Mercenary with Small Laser Last Messages --------------- Technician 1a reveals location of EMP Trap. K-01 Serf collects debris. R-06 Scavenger collects Sml. Laser. K-01 Serf collects debris. Acquired Lgt. Nuclear Core. Connecting with Terminal... R-06 Scavenger collects Lgt. Ion Engine. K-01 Serf collects debris. R-06 Scavenger collects Imp. Heat Sink. R-06 Scavenger collects Lgt. Ion Engine. Aluminum Leg destroyed. Ion Engine destroyed. S-10 Pest destroyed. K-01 Serf collects debris. Lgt. Armor Plating destroyed. K-01 Serf collects debris. S-10 Pest destroyed. Lgt. Assault Rifle destroyed. Acquired Lgt. Assault Rifle. K-01 Serf collects debris. Map ----- +----------------------------------------------------+ | !! #????????????????????? | | ###+#######^ ^! #????????????????????? | | # ## """ !!#????????????????????? | | # """ ## """ !!#????????????????????? | | #""""" ## """ * #????????????????????? | | #""""" ## % #????????????????????? | | #""""" ## = + "??????????????????? | | # """ ## # ??????????????????? | | ? ## #"Y"###"T"# #????????????????????? | | # ## #"""#??#### #????????????????????? | | # ## #####?????? #????????????????????? | | ######+#### #?????????? #????????????????????? | | ?????# #??# #?????????? u#????????????????????? | | ?????# #### #?????????? #########????????????? | | ?????# #?????????? ## ! #????????????? | | ?????# ####+########???? ## #??????+?????? | | ?????# + #????^^^##=== +????? #?????? | | ?????# ## #???# ##=== ######/#?????? | | ?????# ## #???# ##== # #?????? | | ###### ## """ """ #???# ## #! """ #?????? | | ## ## """ """ #?### #####+### """ #?????? | | ## ## """ """ |#?# # """ #?????? | | # # #?# + #?????? | | %+% #############?#a = # """ #?????? | | = # ##"""""""#????# =%#########+# """ #?????? | | # ##" |"| "#???## @##! + """ #?????? | | ##+## ##" "##### !!=# """"" # #?????? | | k*g=# """"" # """ #?????? | | < T + """"" # """ #?????? | | a # """"" # """ #?????? | | ##+####### ##### # """"" # #?????? | | #??#########???## ## """"" ######/#????## | | #???????????????# ## """"" #????# #???# # | | ""#????????????####w ## #????# #??? # | | Y"#????????????+ ###########????# #?? # | | ] ""#????????????#### #?#######??????# #?? # | | #???????????????### #?# ######## ## # | | #######?????????????????#u### # # | | ????????????????????????# < # | | ????????????????????????##### # # | | ????????????????????????????# ####### # < | | ???????????????????????????####+### ! # #? # | | ???????????????????????????# # + #?? ## | | ???????????????????????????# # # #???#? | | ???????????????????????????#""" # + #????? | | ???????????????????????????#"R # """ ###+###### | | ???????????????????????????#""" # """ # = T # | | ???????????????????????????# # """ # # | | ???????????????????????????######## #^ !!# | | ??????????????????????????????????####### !!# | +----------------------------------------------------+ Best States ------------- Heat Dissipation 25 Energy Generation 10 Energy Capacity 250 Matter Stores 239 Matter Capacity 300 Sight Range 16 Terrain Scan Density 10 Armor Coverage 150 Evasion (%) 55 Item Schematics ----------------- None Robot Schematics ------------------ None Fabricated ------------ Nothing Repaired ---------- Lgt. Armor Plating | 4% | -10/Materials Assault Rifle | 17% | -10/Materials Studied --------- None Alien Tech Used ----------------- None Achievements -------------- None Challenges ------------ None Game ------ Seed VisualMomentumSlamshotty Manual? 0 Play Time 00:09:54 Cumulative 35.8 hours Start 2026.03.27 @ 22:28:19 End 2026.03.27 @ 22:51:16 Sessions 1 Manual Loads 0 Difficulty Rogue Special Mode None Game No. 98 Rogue 95 Adventurer 3 Explorer 0 Win Type - Total 0 Types 0/0/0/0/0/0/0/0/0/0 Lore% 7 Gallery% 20 Achievement% 17 Wizard Run 0 Options --------- Layout 1 ASCII 0 Keyboard 1 Movement Numpad Keybinds 0 Fullscreen 2 Font 32/SmallcapsGlow Map View 50x35 Zoom Use 0% Tactical HUD 0 Map Filters NONE Filters NONE Steam 1 RUN: f113dccb-7ac3-441f-b1b5-bbcf03f03a66